[Event "Fagernes Chess GM-Swiss 2024"]
[Site "Fagernes"]
[Date "2024.03.28"]
[Round "6.14"]
[White "Vestby-Ellingsen, Mads"]
[Black "Hillarp Persson, Tiger"]
[Result "0-1"]
[ECO "B90"]
[WhiteElo "2336"]
[BlackElo "2473"]
[Annotator "TA"]
[PlyCount "102"]
[EventDate "2024.03.25"]
[EventType "swiss"]
[EventCountry "NOR"]
[SourceTitle "playchess.com"]
[Source "ChessBase"]
[SourceQuality "1"]
[TimeControl "40/6000+30:2400+30"]

{[%evp 11,102,8,11,0,0,-27,0,0,0,0,0,0,0,0,0,0,6,-34,16,-22,91,90,91,66,90,59,21,-60,41,-47,114,19,64,70,175,144,239,235,249,237,240,0,0,-72,-70,-54,-64,-52,-25,-164,-142,-146,-126,-128,-143,-447,-444,-465,-449,-703,-686,-684,-691,-730,-718,-1026,-1021,-1221,-1170,-1729,-1296,-1449,-1734,-1747,-1562,-1450,-1431,-29981,-29982,-29982,-29983,-29983,-29981,-29981,-29976,-29985,-29986,-29990,-29985,-29991,-29991,-29991,-29992]} 1. e4 {[%emt 0:03:38]} c5 {[%emt 0:00:28]} 2. Nf3 {[%emt 0:00:13]} d6 {[%emt 0:00:05]} 3. d4 {[%emt 0:00:10]} cxd4 {[%emt 0:00:05]} 4. Nxd4 {[%emt 0:00:09]} Nf6 {[%emt 0:00:04]} 5. Nc3 {[%emt 0:00:10]} a6 {[%emt 0:00:06]} 6. h3 {[%emt 0:00:14]} e5 {[%emt 0:00:15]} 7. Nf3 {[%emt 0:00:23]} Be7 {[%emt 0:00:34]} 8. g4 {[%emt 0:00:24]} Be6 {[%emt 0:00:54]} 9. g5 {[%emt 0:12:40] Die Stellung ist ausgeglichen.} Nfd7 {[%emt 0:00:04]} 10. Be3 {[%emt 0:00:23]} Nb6 {[%emt 0:01:06]} 11. Qd2 {[%emt 0:05:47]} N8d7 {[%emt 0:03:25]} 12. O-O-O {[%emt 0:11:18]} Rc8 {[%emt 0:00:20]} 13. Kb1 {[%emt 0:01:27]} O-O {[%emt 0:02:00]} 14. Bd3 {[%emt 0:26:05]} Kh8 {[%emt 0:20:42]} (14... Qc7 $15) 15. Nh4 {[%emt 0:05:55] [#]} Rxc3 {[%emt 0:05:12]} 16. Qxc3 $16 {[%emt 0:01:33]} (16. bxc3 $2 d5 17. Be2 dxe4 $19) 16... Bxg5 {[%emt 0:10:03]} 17. Ng2 {[%emt 0:03:25]} d5 {[%emt 0:09:11][%cal Bd6d5,Bd5d4][%mdl 32]} 18. f4 {[%emt 0:07:04]} d4 {[%emt 0:11:16]} 19. Qe1 {[%emt 0:00:23]} ({Vorzuziehen ist} 19. Qa5 $1 $11 dxe3 20. fxg5 Qxg5 21. Rdg1) 19... Be7 {[%emt 0:00:34]} (19... Na4 $1 $15 20. fxg5 dxe3) 20. Bc1 {[%emt 0:04:01]} (20. Bd2 $14) 20... f6 $2 {[%emt 0:01:46]} (20... Na4 $15 {bleibt weiter vorne.}) 21. Nh4 {[%emt 0:00:32]} ({Besser ist} 21. f5 $16 Bf7 22. c3) 21... Na4 {[%emt 0:01:44] Droht stark ...Qb6.} 22. f5 $1 {[%emt 0:07:28]} Bf7 {[%emt 0:01:40] Es drohte Ng6+} (22... Qb6 $1 $14 23. fxe6 Nxb2) 23. Rg1 $1 $18 {[%emt 0:01:30] Zielt auf Qg3 ab.} h6 {[%emt 0:09:46]} (23... Re8 $16 {war nötig.}) 24. Ng6+ $1 {[%emt 0:04:39]} Kh7 {[%emt 0:00:06]} 25. Nxe7 {[%emt 0:09:32]} (25. Nxf8+ Bxf8 26. Rg3 Kh8) 25... Qxe7 {[%emt 0:00:08] [#]} 26. Rxg7+ {[%emt 0:01:59]} Kxg7 $11 {[%emt 0:00:12]} 27. Bxh6+ {[%emt 0:00:11]} Kxh6 $17 {[%emt 0:04:08]} 28. Qh4+ {[%emt 0:00:10]} Bh5 {[%emt 0:00:08]} 29. Rg1 {[%emt 0:00:13] jetzt Rg6+ und aus.} Qe8 {[%emt 0:00:24]} 30. Rg6+ {[%emt 0:01:28] [#]} (30. Qg3 $1 $11 {und Weiss muss sich keine Sorgen machen.} Rf7 31. Be2) 30... Qxg6 $1 $19 {[%emt 0:00:08]} 31. fxg6 {[%emt 0:00:05]} Kxg6 {[%emt 0:00:15] Weiss muss nun ...b5 beachten.} 32. Bc4 {[%emt 0:02:50]} Nac5 {[%emt 0:04:01] Es drohte Be6. Und jetzt ...b5 wäre schön.} 33. b4 $2 {[%emt 0:00:22][%mdl 8192] [#]} (33. Qg3+ $17 Kh6 34. Qh4) 33... Nb6 $1 {[%emt 0:00:21]} 34. Bf1 {[%emt 0:00:38]} Ne6 {[%emt 0:00:23]} 35. a4 {[%emt 0:00:33]} (35. Qg3+ $142 Kf7 36. Qf2) 35... Nxa4 {[%emt 0:00:47]} 36. Qg3+ {[%emt 0:00:26]} Kh6 {[%emt 0:00:09]} 37. Bc4 {[%emt 0:00:30]} Nf4 {[%emt 0:01:28]} 38. Qa3 {[%emt 0:00:29]} Nc3+ {[%emt 0:01:16]} 39. Kb2 {[%emt 0:00:32]} Rc8 {[%emt 0:02:34]} 40. Bf1 {[%emt 0:00:30]} Nd1+ {[%emt 0:01:09]} 41. Kb1 {[%emt 0:00:40]} Ne3 {[%emt 0:00:14]} 42. Bd3 {[%emt 0:00:31]} Nxd3 {[%emt 0:05:27]} 43. cxd3 {[%emt 0:00:17]} Rc3 {[%emt 0:01:14]} 44. Qa5 {[%emt 0:00:35]} Be2 {[%emt 0:00:15] Schwarz setzt Matt.} 45. Qd8 {[%emt 0:01:39]} Bxd3+ {[%emt 0:00:08]} 46. Ka2 {[%emt 0:00:24]} Bc4+ {[%emt 0:08:31]} 47. Kb1 {[%emt 0:00:59]} Kg7 {[%emt 0:00:47]} 48. Qe7+ {[%emt 0:01:11]} Bf7 {[%emt 0:03:23]} 49. Qxb7 {[%emt 0:00:10] [#]} a5 $1 {[%emt 0:01:16]} 50. b5 {[%emt 0:01:15]} (50. bxa5 Rb3+) 50... a4 {[%emt 0:00:05]} 51. b6 {[%emt 0:00:47]} a3 {[%emt 0:00:22] Schwarz hat seine Chance genutzt.   Gewichteter Fehlerwert: Weiß=0.84/Schwarz=0.22 (präzise) .  Verlustzug:     	Weiß=1     	---        Gewinn verpasst:   	Weiß=1     	---        Fehler:       	Weiß=6     	Schwarz=6     Ungenau:       	Weiß=4     	Schwarz=2     OK:         	Weiß=7     	Schwarz=11    Bester:       	Weiß=2     	Schwarz=3     Stark:        	Weiß=2     	Schwarz=1     Brilliant:      	---       	Schwarz=1} 0-1

[Event "Fagernes Chess GM-Swiss 2024"]
[Site "Fagernes"]
[Date "2024.03.28"]
[Round "6.15"]
[White "Koelle, Tobias"]
[Black "Nielsen, Viktor Haarmark"]
[Result "1/2-1/2"]
[ECO "D41"]
[WhiteElo "2460"]
[BlackElo "2351"]
[Annotator "TA"]
[PlyCount "119"]
[EventDate "2024.03.25"]
[EventType "swiss"]
[EventCountry "NOR"]
[SourceTitle "playchess.com"]
[Source "ChessBase"]
[SourceQuality "1"]
[TimeControl "40/6000+30:2400+30"]

{[%evp 23,119,-10,0,0,0,0,0,0,26,0,10,-8,-14,-27,5,5,5,6,8,12,5,6,9,2,5,0,0,0,0,0,0,-8,0,0,0,0,0,0,0,0,0,-16,-16,-33,-28,-38,-38,-38,-39,-50,-18,-24,-11,-11,-8,-8,-8,-123,-120,-162,-11,-11,-11,-11,-11,-11,-11,-11,-11,-11,-11,-11,-11,-11,0,-11,-11,-11,0,-11,-11,-11,-11,-11,-11,-11,-11,-11,-11,-11,-11,-11,0,-11,0,-11,0,-11]} 1. d4 {[%emt 0:00:59]} Nf6 {[%emt 0:00:08]} 2. c4 {[%emt 0:00:06]} e6 {[%emt 0:00:15]} 3. Nf3 {[%emt 0:00:10]} d5 {[%emt 0:00:00]} 4. Nc3 {[%emt 0:00:05]} c5 {[%emt 0:00:28]} 5. cxd5 {[%emt 0:00:07]} Nxd5 {[%emt 0:00:07]} 6. e4 {[%emt 0:00:04]} Nxc3 {[%emt 0:00:05]} 7. bxc3 {[%emt 0:00:06]} cxd4 {[%emt 0:00:05]} 8. cxd4 {[%emt 0:00:08]} Bb4+ {[%emt 0:00:04]} 9. Bd2 {[%emt 0:00:10]} Bxd2+ {[%emt 0:00:11]} 10. Qxd2 {[%emt 0:00:06]} O-O {[%emt 0:00:06]} 11. h4 {[%emt 0:00:06] D41: Queen's Gambit Declined: Semi-Tarrasch with 5 cxd5.} b6 {[%emt 0:01:55]} 12. Rd1 {[%emt 0:02:50]} Bb7 {[%emt 0:10:18]} 13. Bd3 {[%emt 0:00:10]} Qe7 {[%emt 0:00:56]} 14. O-O {[%emt 0:02:51]} Nd7 {[%emt 0:00:41]} 15. Rfe1 {[%emt 0:03:06]} Nf6 $146 {[%emt 0:07:21]} ({Predecessor:} 15... Rfd8 16. Qf4 Rac8 17. h5 h6 18. Qg3 Rc3 19. Bb1 Rdc8 {½-½ Kuemin,S (2259)-Gasthofer,V (2365) Oberliga Baden 0001 2000 (5.3)}) 16. Qf4 {[%emt 0:07:37]} Rfe8 {[%emt 0:11:19]} 17. e5 {[%emt 0:36:18]} Nd5 $1 {[%emt 0:06:15]} 18. Qg4 {[%emt 0:03:04]} Rac8 {[%emt 0:07:06]} 19. Ng5 {[%emt 0:11:15]} h6 {[%emt 0:02:55]} 20. Ne4 $1 {[%emt 0:00:41]} f5 {[%emt 0:02:24]} 21. exf6 {[%emt 0:00:29]} Nxf6 {[%emt 0:00:06]} 22. Nxf6+ {[%emt 0:00:43]} Qxf6 {[%emt 0:00:08]} 23. Bg6 {[%emt 0:02:25]} Re7 {[%emt 0:06:20]} 24. h5 {[%emt 0:05:48]} Bd5 {[%emt 0:00:56]} 25. Rc1 {[%emt 0:02:30]} Rec7 {[%emt 0:01:34]} 26. Rxc7 {[%emt 0:01:30]} Rxc7 {[%emt 0:00:06]} 27. a3 {[%emt 0:12:45]} Rc3 {[%emt 0:11:29]} 28. Be4 {[%emt 0:01:04]} Bxe4 {[%emt 0:04:48]} 29. Rxe4 {[%emt 0:00:43]} Qf5 {[%emt 0:02:41]} 30. Qe2 {[%emt 0:02:36]} Qg5 {[%emt 0:08:09]} 31. g3 {[%emt 0:03:16]} Qd5 {[%emt 0:01:04]} 32. Kh2 {[%emt 0:01:27]} Rc1 {[%emt 0:03:10]} 33. Qf3 {[%emt 0:04:27]} Ra1 {[%emt 0:01:39]} 34. Rf4 {[%emt 0:01:23]} Qxf3 {[%emt 0:01:27]} 35. Rxf3 {[%emt 0:00:01]} Rd1 {[%emt 0:00:23]} 36. Re3 {[%emt 0:00:21]} Rxd4 {[%emt 0:07:47]} 37. Rxe6 {[%emt 0:00:05]} Rd5 {[%emt 0:00:12]} 38. g4 {[%emt 0:01:12]} Rd4 {[%emt 0:00:11]} 39. f3 {[%emt 0:02:46]} Rd3 {[%emt 0:01:01]} 40. a4 {[%emt 0:00:44]} (40. Re8+ $11 {keeps the balance.} Kf7 41. Rb8) 40... Rxf3 $17 {[%emt 0:06:51]} 41. Re7 {[%emt 0:12:25]} Rf4 $2 {[%emt 0:06:22]} (41... a5 $19 {And now ...Rf4 would win.} 42. Rb7 Ra3 43. Rb8+ Kh7 44. Rxb6 Rxa4) 42. Rxa7 $11 {[%emt 0:02:13]} Rxg4 {[%emt 0:01:01]} 43. Kh3 $1 {[%emt 0:00:21]} Rg5 {[%emt 0:01:20]} 44. Kh4 {[%emt 0:00:39]} Rc5 {[%emt 0:07:55]} 45. Ra6 {[%emt 0:04:03]} Rc4+ {[%emt 0:01:58]} 46. Kg3 {[%emt 0:00:17]} Rb4 {[%emt 0:00:20]} 47. a5 {[%emt 0:01:38]} Rb3+ {[%emt 0:00:11]} 48. Kg4 {[%emt 0:00:13]} Rb4+ {[%emt 0:00:09]} 49. Kg3 {[%emt 0:00:06]} bxa5 {[%emt 0:02:19]} 50. Rxa5 {[%emt 0:01:24]} Kf7 {[%emt 0:00:04]} 51. Ra6 {[%emt 0:00:16]} Re4 {[%emt 0:00:05]} 52. Rb6 {[%emt 0:01:18]} Re6 {[%emt 0:00:07]} 53. Rb5 {[%emt 0:00:22]} Kf6 {[%emt 0:00:07]} 54. Kf4 {[%emt 0:00:13]} Rc6 {[%emt 0:00:10]} 55. Rb4 {[%emt 0:00:37]} Ra6 {[%emt 0:00:25]} 56. Rc4 {[%emt 0:00:16]} Rd6 {[%emt 0:00:13]} 57. Rb4 {[%emt 0:00:09]} Ra6 {[%emt 0:00:03]} 58. Rc4 {[%emt 0:00:07]} Rd6 {[%emt 0:00:05]} 59. Rb4 {[%emt 0:00:06]} Ra6 {[%emt 0:00:05]} 60. Rc4 $1 {[%emt 0:00:04]} 1/2-1/2

[Event "Fagernes Chess GM-Swiss 2024"]
[Site "Fagernes"]
[Date "2024.03.28"]
[Round "6.16"]
[White "Elsness, Frode"]
[Black "Elmi, Saad Abobaker"]
[Result "1-0"]
[ECO "A70"]
[WhiteElo "2437"]
[BlackElo "2344"]
[Annotator "TA"]
[PlyCount "69"]
[EventDate "2024.03.25"]
[EventType "swiss"]
[EventCountry "NOR"]
[SourceTitle "playchess.com"]
[Source "ChessBase"]
[SourceQuality "1"]
[TimeControl "40/6000+30:2400+30"]

{[%evp 21,69,87,83,16,40,25,53,49,56,31,45,58,44,51,66,18,18,26,61,37,39,35,73,60,100,102,94,99,119,106,147,97,164,171,320,319,327,314,297,284,251,237,399,378,407,399,398,374,344,341]} 1. d4 {[%emt 1:15:46]} Nf6 {[%emt 0:05:14]} 2. c4 {[%emt 0:00:03]} e6 {[%emt 0:00:08]} 3. Nf3 {[%emt 0:00:03]} c5 {[%emt 0:00:20]} 4. d5 {[%emt 0:00:24]} exd5 {[%emt 0:00:09]} 5. cxd5 {[%emt 0:00:03]} d6 {[%emt 0:00:10]} 6. Nc3 {[%emt 0:00:09]} g6 {[%emt 0:00:24]} 7. h3 {[%emt 0:01:39]} Bg7 {[%emt 0:00:22]} 8. e4 {[%emt 0:00:09]} O-O {[%emt 0:00:22]} 9. Bd3 {[%emt 0:00:29]} Re8 {[%emt 0:03:07]} 10. O-O {[%emt 0:00:30]} Na6 {[%emt 0:00:55]} 11. Re1 {[%emt 0:02:19]} Nc7 {[%emt 0:02:55][%cal Ob7b5]} 12. Nd2 {[%emt 0:04:01]} (12. a4 $16) 12... b6 {[%emt 0:04:03]} 13. a4 {[%emt 0:04:56]} Rb8 {[%emt 0:09:34]} 14. Nc4 {[%emt 0:07:00] White is slightly better.} Ba6 {[%emt 0:05:58]} 15. Bg5 {[%emt 0:19:04]} h6 {[%emt 0:14:44]} 16. Bh4 {[%emt 0:00:30][%cal Oc4d6]} Bxc4 {[%emt 0:18:59]} 17. Bxc4 {[%emt 0:00:18] Threatens to win with f4.} a6 {[%emt 0:00:50]} 18. Qd3 {[%emt 0:21:10] White is more active.} (18. e5 $14 {deserves consideration.} dxe5 19. d6) 18... g5 $11 {[%emt 0:02:05]} 19. Bg3 {[%emt 0:00:06][%cal Oe4e5] e5! is the strong threat.} Nh5 {[%emt 0:00:18]} 20. Bxa6 {[%emt 0:05:20]} (20. Bh2 {with more complications.} Bd4 21. Bxa6 Qf6 22. Re2) 20... Nxg3 {[%emt 0:01:32]} 21. fxg3 {[%emt 0:02:32]} Bd4+ {[%emt 0:02:09] [#]} 22. Kh2 $1 {[%emt 0:01:41]} g4 {[%emt 0:01:33]} 23. Bb5 {[%emt 0:04:30]} (23. hxg4 Be5 24. Re3 Nxa6 25. Qxa6 Qh4+ 26. Kg1 Bxg3 27. Rxg3 Qxg3 $15) 23... Nxb5 {[%emt 0:03:50]} 24. axb5 {[%emt 0:00:41]} Be5 {[%emt 0:03:37]} 25. Rf1 {[%emt 0:09:00]} (25. hxg4 Qh4+ 26. Kg1 Bxg3 $17 (26... Qxg3 27. Qxg3 Bxg3 28. Rf1 $16)) 25... h5 {[%emt 0:01:17] Black is weak on the light squares} 26. Kh1 {[%emt 0:06:14]} (26. Qe2 $142) 26... h4 {[%emt 0:04:03] [#]} (26... gxh3 $16 {is a better defense.} 27. Qf3 (27. gxh3 h4 $11) 27... Rb7) 27. Qe2 $1 $18 {[%emt 0:04:31]} (27. hxg4 $2 hxg3 (27... Bxg3 $2 28. e5 $18) 28. Rfe1 Qh4+ 29. Kg1 Qh2+ (29... Qxg4 30. Qf3 $17) 30. Kf1 Qh1+ 31. Ke2 Qxg2+ 32. Kd1 Qxb2 $19) 27... Qg5 {[%emt 0:01:21]} (27... Qd7 $142) 28. Rf5 {[%emt 0:04:31]} ({And not} 28. Qxg4 Qxg4 29. hxg4 hxg3 $17 (29... Bxg3 30. Ra7 $14)) 28... Qg6 {[%emt 0:00:35]} 29. gxh4 {[%emt 0:00:43]} ({Weaker is} 29. hxg4 hxg3 (29... Bxg3 30. Raf1 $16) 30. Qf3 c4 $15) 29... f6 {[%emt 0:10:57] Against Rg5} 30. Qxg4 {[%emt 0:01:49]} Qxg4 {[%emt 0:00:25]} 31. hxg4 Bxc3 $2 {[%emt 0:00:15]} (31... Re7 32. Ra6 Rg7) 32. bxc3 {[%emt 0:00:03]} Rxe4 {[%emt 0:00:07]} 33. Rxf6 {[%emt 0:01:27]} Rxg4 {[%emt 0:00:04]} 34. Rxd6 {[%emt 0:00:53]} Rxh4+ {[%emt 0:00:12]} 35. Kg1 {[%emt 0:00:02] Weighted Error Value: White=0.14 (very precise) /Black=0.26 (precise) .  Mistake:       	White=2     	Black=3      Inaccurate:     	---       	Black=5      OK:         	White=7     	Black=11     Best:        	White=2     	Black=2      Strong:       	White=2     	---} 1-0

[Event "Fagernes Chess GM-Swiss 2024"]
[Site "Fagernes"]
[Date "2024.03.28"]
[Round "6.17"]
[White "Sorensen, Hampus"]
[Black "Lund, Gunnar"]
[Result "1/2-1/2"]
[ECO "D35"]
[WhiteElo "2428"]
[BlackElo "2335"]
[Annotator "RC"]
[PlyCount "77"]
[EventDate "2024.03.25"]
[EventType "swiss"]
[EventCountry "NOR"]
[SourceTitle "playchess.com"]
[Source "ChessBase"]
[SourceQuality "1"]
[TimeControl "40/6000+30:2400+30"]

1. d4 {[%emt 0:00:23]} d5 {[%emt 0:00:11]} 2. c4 {[%emt 0:00:11]} e6 {[%emt 0:00:07]} 3. Nc3 {[%emt 0:00:17]} Nf6 {[%emt 0:00:08]} 4. cxd5 {[%emt 0:00:20]} exd5 {[%emt 0:00:07]} 5. Bg5 {[%emt 0:13:11]} Be7 {[%emt 0:00:44]} 6. e3 {[%emt 0:00:11]} c6 {[%emt 0:00:08]} 7. Bd3 {[%emt 0:00:36]} Nbd7 {[%emt 0:00:07]} 8. Bf4 {[%emt 0:05:04]} O-O {[%emt 0:05:32]} 9. h3 {[%emt 0:01:16]} Re8 {[%emt 0:01:21]} 10. Nf3 {[%emt 0:03:29]} Nf8 {[%emt 0:05:53]} 11. O-O {[%emt 0:00:36]} Ng6 {[%emt 0:02:24]} 12. Bh2 {[%emt 0:00:11]} Bd6 {[%emt 0:00:28]} 13. Bxd6 {[%emt 0:00:09]} Qxd6 {[%emt 0:00:04]} 14. Qc2 {[%emt 0:00:10]} Bd7 {[%emt 0:19:06]} 15. Rfb1 {[%emt 0:09:48]} Qe7 {[%emt 0:24:56]} 16. b4 {[%emt 0:08:31]} Rac8 {[%emt 0:01:25]} 17. b5 {[%emt 0:04:24]} c5 {[%emt 0:01:07]} 18. Qb2 {[%emt 0:13:39]} c4 {[%emt 0:02:53]} 19. Bc2 {[%emt 0:00:59]} Be6 {[%emt 0:05:25]} 20. b6 {[%emt 0:12:34]} a6 {[%emt 0:00:31]} 21. Qb4 {[%emt 0:00:39]} Qd8 {[%emt 0:02:12]} 22. a4 {[%emt 0:03:55]} Ne7 {[%emt 0:03:59]} 23. a5 {[%emt 0:06:24]} Bf5 {[%emt 0:00:47]} 24. Qb2 {[%emt 0:00:33]} Bxc2 {[%emt 0:01:15]} 25. Qxc2 {[%emt 0:00:01]} Nc6 {[%emt 0:00:10]} 26. Nd2 {[%emt 0:04:37]} Qe7 {[%emt 0:01:28]} 27. Qa4 {[%emt 0:01:02]} Rcd8 {[%emt 0:00:18]} 28. Nf1 {[%emt 0:05:15]} Ne4 {[%emt 0:01:38]} 29. Nxe4 {[%emt 0:04:16]} Qxe4 {[%emt 0:00:05]} 30. Ng3 {[%emt 0:00:37]} Qg6 {[%emt 0:02:16]} 31. Ne2 {[%emt 0:02:04]} h6 {[%emt 0:04:08]} 32. Rb2 {[%emt 0:03:31]} Qg5 {[%emt 0:01:27]} 33. Qd1 {[%emt 0:00:59]} Ne7 {[%emt 0:04:07]} 34. Nc3 {[%emt 0:00:54]} Nf5 {[%emt 0:04:11]} 35. Qg4 {[%emt 0:00:08]} Qf6 {[%emt 0:00:38]} 36. Qf3 {[%emt 0:00:48]} Qg5 {[%emt 0:00:44]} 37. Qg4 {[%emt 0:01:09]} Qf6 {[%emt 0:00:01]} 38. Qf3 {[%emt 0:03:52]} Qg5 {[%emt 0:00:01]} 39. Qg4 {[%emt 0:02:19]} 1/2-1/2

[Event "Fagernes Chess GM-Swiss 2024"]
[Site "Fagernes"]
[Date "2024.03.28"]
[Round "6.18"]
[White "Dushyant Sharma"]
[Black "Celik, Hasan Huseyin"]
[Result "1/2-1/2"]
[ECO "B61"]
[WhiteElo "2331"]
[BlackElo "2417"]
[Annotator "TA"]
[PlyCount "51"]
[EventDate "2024.03.25"]
[EventType "swiss"]
[EventCountry "NOR"]
[SourceTitle "playchess.com"]
[Source "ChessBase"]
[SourceQuality "1"]
[TimeControl "40/6000+30:2400+30"]

{[%evp 19,51,36,43,21,47,43,35,43,61,54,45,43,60,37,36,38,56,45,48,29,36,22,46,26,31,28,23,11,14,0,7,0,0,-10]} 1. e4 {[%emt 0:00:04]} c5 {[%emt 0:02:55]} 2. Nf3 {[%emt 0:00:14]} d6 {[%emt 0:00:09]} 3. d4 {[%emt 0:00:06]} cxd4 {[%emt 0:00:15]} 4. Nxd4 {[%emt 0:00:06]} Nf6 {[%emt 0:00:08]} 5. Nc3 {[%emt 0:00:06]} Nc6 {[%emt 0:00:12]} 6. Bg5 {[%emt 0:01:10]} Bd7 {[%emt 0:00:09]} 7. Qd2 {[%emt 0:06:36]} Rc8 {[%emt 0:00:12]} 8. O-O-O {[%emt 0:10:33]} Nxd4 {[%emt 0:00:09]} 9. Qxd4 {[%emt 0:00:09]} Qa5 {[%emt 0:00:10]} 10. Be3 {[%emt 0:12:15]} a6 {[%emt 0:14:03]} 11. f3 {[%emt 0:03:52]} e5 {[%emt 0:10:14]} 12. Qb6 {[%emt 0:02:56]} Qxb6 {[%emt 0:00:19]} 13. Bxb6 {[%emt 0:00:08] White is slightly better.} Be7 {[%emt 0:01:13]} 14. Be2 {[%emt 0:23:55]} Be6 {[%emt 0:10:12]} 15. Rd2 {[%emt 0:02:41]} h5 {[%emt 0:09:44]} 16. Be3 {[%emt 0:04:08]} h4 {[%emt 0:09:42][%cal Oc8c3]} 17. Rhd1 {[%emt 0:00:59]} Rc6 {[%emt 0:01:22]} 18. Kb1 {[%emt 0:00:33]} g6 {[%emt 0:05:53]} 19. Nd5 {[%emt 0:06:23]} Bxd5 {[%emt 0:01:32]} 20. exd5 {[%emt 0:00:06]} Rc7 {[%emt 0:04:20]} 21. c4 {[%emt 0:01:38]} Nd7 {[%emt 0:01:18]} 22. b4 {[%emt 0:01:46][%cal Oc4c5]} b6 {[%emt 0:00:35]} 23. Rc2 {[%emt 0:01:13]} f5 {[%emt 0:02:58] The position is equal.} 24. h3 {[%emt 0:10:38][%cal Oc4c5]} Kf7 {[%emt 0:01:46]} 25. a3 {[%emt 0:01:31]} a5 {[%emt 0:02:27]} 26. Rdd2 {[%emt 0:04:10] Weighted Error Value: White=0.10 (very precise) /Black=0.06 (flawless) .  Inaccurate:     	---       	Black=1      OK:         	White=2     	Black=8} 1/2-1/2

[Event "Fagernes Chess GM-Swiss 2024"]
[Site "Fagernes"]
[Date "2024.03.28"]
[Round "6.19"]
[White "Narva, Mai"]
[Black "Vagman, Roy"]
[Result "1-0"]
[ECO "B10"]
[WhiteElo "2399"]
[BlackElo "2311"]
[Annotator "TA"]
[PlyCount "53"]
[EventDate "2024.03.25"]
[EventType "swiss"]
[EventCountry "NOR"]
[SourceTitle "playchess.com"]
[Source "ChessBase"]
[SourceQuality "1"]
[TimeControl "40/6000+30:2400+30"]

{[%evp 18,53,108,92,99,100,107,110,99,83,90,77,76,73,79,79,80,74,75,72,91,60,65,82,64,75,79,92,117,106,133,102,118,108,757,743,895,884]} 1. e4 {[%emt 0:00:46]} c6 {[%emt 0:00:14]} 2. c4 {[%emt 0:00:21]} d5 {[%emt 0:00:14]} 3. cxd5 {[%emt 0:00:11]} cxd5 {[%emt 0:00:09]} 4. exd5 {[%emt 0:00:05]} Nf6 {[%emt 0:00:24]} 5. Nc3 {[%emt 0:00:14]} g6 {[%emt 0:04:05]} 6. Bc4 {[%emt 0:00:54]} Bg7 {[%emt 0:00:55]} 7. Nf3 {[%emt 0:00:42]} O-O {[%emt 0:01:15]} 8. O-O {[%emt 0:00:32][%cal Bh1f1,Bf1e1,Be1e5][%mdl 32]} Nbd7 {[%emt 0:06:47]} 9. d3 {[%emt 0:05:16]} Nb6 {[%emt 0:19:46]} 10. Qb3 {[%emt 0:00:50]} Bg4 {[%emt 0:11:07]} 11. Ne5 {[%emt 0:06:33]} Bf5 {[%emt 0:00:22][%cal Of6d5]} 12. Re1 {[%emt 0:03:34]} Ne8 {[%emt 0:09:39] White is better.} 13. a4 {[%emt 0:03:06][%cal Ba2a4,Ba4a5][%mdl 32]} Nd6 {[%emt 0:02:15]} 14. a5 {[%emt 0:15:14]} Nbxc4 {[%emt 0:12:49]} 15. dxc4 {[%emt 0:01:43] aiming for c5.} Bxe5 {[%emt 0:08:08]} 16. Rxe5 {[%emt 0:00:08] c5 would now be deadly.} Rc8 {[%emt 0:00:11] Black is weak on the dark squares} 17. Bh6 {[%emt 0:09:15] And now a6 would win.} Re8 {[%emt 0:01:05][%cal Oa7a6]} 18. Nb5 {[%emt 0:13:15]} Rxc4 {[%emt 0:08:32] [#]} (18... Nxc4 $2 {too greedy.} 19. Rxf5 Qd7 20. Rf4 Qxd5 21. Na3 $18 (21. Nxa7 Rc5 $18)) 19. Rxf5 {[%emt 0:12:46]} Nxf5 {[%emt 0:05:25]} (19... Rh4 20. Nxd6) 20. Qxc4 {[%emt 0:00:10]} Nxh6 {[%emt 0:00:04]} 21. Nxa7 {[%emt 0:02:11] White is much more active.} Nf5 {[%emt 0:03:10]} 22. b4 $36 {[%emt 0:02:01][%mdl 2048] Black is under strong pressure.} Qb8 {[%emt 0:02:24]} 23. Nb5 {[%emt 0:05:33]} Qe5 {[%emt 0:00:05]} 24. Rd1 {[%emt 0:00:54]} Rd8 {[%emt 0:00:24]} 25. h3 {[%emt 0:01:38]} e6 $2 {[%emt 0:05:43][%mdl 8192] [#]} (25... Kf8 $16 26. Qc5 Qe4) 26. d6 $1 $18 {[%emt 0:01:36][%mdl 512]} Nxd6 {[%emt 0:01:39]} (26... Ne7 27. Qc7) 27. Qc5 {[%emt 0:01:55] Weighted Error Value: White=0.08 (flawless) /Black=0.11 (very precise) .  Loses game:     	---       	Black=1      Inaccurate:     	White=1     	---        OK:         	White=7     	Black=6      Best:        	White=2     	---        Brilliant:      	White=1     	---} 1-0